bitfinex/quotes_BTCUSD_20241202
["timestamp","ask_amount","ask_price","bid_price","bid_amount"]
[1733102767011,0.09724226,98056.0,98055.0,0.40284521]
[1733102767228,0.09724226,98056.0,98055.0,0.90284521]
[1733102767654,0.07695679,98056.0,98055.0,0.91359561]
[1733102768389,0.00056455,98364.0,98085.0,0.3]
[1733102768390,0.20389,98092.0,98085.0,0.3]
[1733102768600,0.20389,98092.0,98085.0,0.65334521]
[1733102768809,0.00064914,98086.0,98085.0,0.65334521]
[1733102769482,0.01283329,98089.0,98086.0,0.15]
[1733102769695,0.01283329,98089.0,98088.0,0.10284521]
[1733102769911,0.01217332,98089.0,98088.0,0.10464947]
[1733102771041,0.02592864,98113.0,98099.0,0.9]
[1733102771256,0.005,98113.0,98099.0,4.13104521]
[1733102772409,0.203829,98121.0,98120.0,0.55]
[1733102772621,0.203829,98121.0,98120.0,0.65284521]
[1733102772832,0.198829,98121.0,98120.0,0.40284521]
[1733102773472,0.203829,98121.0,98120.0,0.40284521]
[1733102773690,0.20400649,98121.0,98120.0,0.40284521]
[1733102773905,0.19900649,98121.0,98120.0,0.39784521]
[1733102774119,0.00017749,98121.0,98120.0,0.39784521]
[1733102774344,0.00017749,98121.0,98120.0,0.39884521]
[1733102774801,0.00017749,98121.0,98120.0,0.39984521]
[1733102775019,0.00017749,98121.0,98120.0,0.64984521]
[1733102775725,0.00017749,98121.0,98120.0,0.39984521]
[1733102776148,0.00017749,98121.0,98120.0,0.09984521]
[1733102777001,0.00104399,98121.0,98120.0,0.09984521]
[1733102777454,0.00104399,98121.0,98120.0,0.09884521]
[1733102777685,0.00104399,98121.0,98120.0,0.09784521]
[1733102777899,0.01604399,98121.0,98120.0,0.09984521]
[1733102778640,0.01004399,98121.0,98120.0,0.09884521]
[1733102778848,0.00704399,98121.0,98120.0,0.09884521]
[1733102779084,0.01604399,98121.0,98120.0,0.09984521]
[1733102779360,0.01004399,98121.0,98120.0,0.09884521]
[1733102780929,0.00704399,98121.0,98120.0,0.09884521]
[1733102781146,0.01604399,98121.0,98120.0,0.09984521]
[1733102781374,0.01004399,98121.0,98120.0,0.09884521]
[1733102781608,0.01604399,98121.0,98120.0,0.09984521]
[1733102783479,0.01604399,98121.0,98120.0,0.09884521]
[1733102783702,0.00704399,98121.0,98120.0,0.09884521]
[1733102783913,0.00104399,98121.0,98120.0,0.09749365]
[1733102784125,0.01004399,98121.0,98120.0,0.09949365]
[1733102784336,0.01604399,98121.0,98120.0,0.09949365]
[1733102784771,0.01004399,98121.0,98120.0,0.09849365]
[1733102784983,0.01004399,98121.0,98120.0,0.44770028]
[1733102784984,0.01604399,98121.0,98120.0,0.44770028]
[1733102785207,0.01604399,98121.0,98120.0,0.54589656]
[1733102785456,0.0479,98156.0,98120.0,0.54589656]
[1733102785457,0.001,98228.0,98181.0,0.3]
[1733102785750,0.203703,98182.0,98181.0,0.3]
[1733102786505,0.203703,98182.0,98181.0,0.4]
[1733102786752,0.203703,98182.0,98181.0,0.403]
[1733102787046,0.4071695,98185.0,98181.0,0.4]
[1733102787239,0.40734694,98185.0,98182.0,0.00180258]
[1733102787473,0.40734694,98185.0,98182.0,0.25180258]
[1733102787939,0.20364894,98185.0,98184.0,0.1]
[1733102788177,0.20115017,98185.0,98184.0,0.1]
[1733102788407,0.199401,98185.0,98184.0,0.1]
[1733102789110,0.199401,98185.0,98184.0,0.3]
[1733102789343,0.0466,98184.0,98182.0,0.001]
[1733102789581,0.203701,98183.0,98182.0,0.002]
[1733102789835,0.203701,98183.0,98182.0,0.001]
[1733102790071,0.203701,98183.0,98171.0,0.3]
[1733102790072,0.203724,98172.0,98171.0,0.3]
[1733102790724,0.203727,98171.0,98169.0,0.3]
[1733102790945,0.203727,98171.0,98170.0,0.10284521]
[1733102793281,0.211627,98171.0,98170.0,0.10384521]
[1733102793535,0.211627,98171.0,98170.0,0.10484521]
[1733102794914,0.20374,98164.0,98163.0,0.21316208]
[1733102795142,0.20374,98164.0,98161.0,0.00020603]
[1733102795143,0.28144,98164.0,98161.0,0.00020603]
[1733102795589,0.203778,98146.0,98145.0,0.3]
[1733102795824,0.203778,98146.0,98145.0,0.08246721]
[1733102796071,0.203778,98146.0,98145.0,0.04171121]
[1733102797004,0.204778,98146.0,98145.0,0.05130308]
[1733102797240,0.205778,98146.0,98145.0,0.06030308]
[1733102798190,0.22617257,98146.0,98145.0,0.06030308]
[1733102799789,0.22417257,98146.0,98145.0,0.04230308]
[1733102800027,0.22417257,98146.0,98145.0,0.04630308]
[1733102800269,0.22517257,98146.0,98145.0,0.14930308]
[1733102800514,0.22417257,98146.0,98145.0,0.14230308]
[1733102800734,0.22417257,98146.0,98145.0,0.04530308]
[1733102800735,0.22517257,98146.0,98145.0,0.04530308]
[1733102800977,0.22617257,98146.0,98145.0,0.05430308]
[1733102801211,0.22517257,98146.0,98145.0,0.05130308]
[1733102802390,0.22417257,98146.0,98145.0,0.04330308]
[1733102802625,0.24017257,98146.0,98145.0,0.04430308]
[1733102802865,0.24017257,98146.0,98145.0,0.04330308]
[1733102803102,0.24217257,98146.0,98145.0,0.04330308]
[1733102803327,0.22417257,98146.0,98145.0,0.04230308]
[1733102803572,0.22517257,98146.0,98145.0,0.05130308]
[1733102803843,0.22617257,98146.0,98145.0,0.06030308]
[1733102805443,0.22517257,98146.0,98145.0,0.05130308]
[1733102805670,0.22617257,98146.0,98145.0,0.06030308]
[1733102805907,0.22517257,98146.0,98145.0,0.05130308]
[1733102806136,0.22517257,98146.0,98145.0,0.00059187]
[1733102806416,0.27267257,98146.0,98145.0,0.01859187]
[1733102806646,0.27067257,98146.0,98145.0,0.00959187]
[1733102806868,0.27167257,98146.0,98145.0,0.01859187]
[1733102807091,0.27067257,98146.0,98145.0,0.00959187]
[1733102807333,0.27167257,98146.0,98145.0,0.01859187]
[1733102807796,0.27067257,98146.0,98145.0,0.00959187]
[1733102808988,0.27067257,98146.0,98145.0,0.01859187]
[1733102809227,0.27167257,98146.0,98145.0,0.01859187]
[1733102809907,0.203811,98130.0,98124.0,0.3]
[1733102810208,0.203829,98121.0,98120.0,0.0017304]
[1733102810432,0.203829,98121.0,98120.0,0.1047531]
[1733102811112,0.203829,98121.0,98120.0,0.00190789]
[1733102811337,0.279829,98121.0,98120.0,0.00190789]
[1733102812710,0.288829,98121.0,98120.0,0.00290789]
[1733102813181,0.30947367,98121.0,98120.0,8.9e-07]
[1733102813404,0.31847367,98121.0,98120.0,8.9e-07]
[1733102814759,0.24247367,98121.0,98120.0,8.9e-07]
[1733102815182,0.24247367,98121.0,98120.0,0.1028461]
[1733102818824,0.24247367,98121.0,98120.0,8.9e-07]
[1733102819261,0.203852,98110.0,98109.0,0.049]
[1733102819514,0.203852,98110.0,98109.0,0.15184521]
[1733102820929,0.212852,98110.0,98109.0,0.15184521]
[1733102821147,0.212852,98110.0,98109.0,0.10384521]
[1733102821613,0.218852,98110.0,98109.0,0.10384521]
[1733102823999,0.218852,98110.0,98109.0,0.10557521]
[1733102824444,0.218852,98110.0,98109.0,0.20557521]
[1733102825097,0.261122,98110.0,98109.0,0.00273]
[1733102825312,0.203888,98093.0,98092.0,0.3]
[1733102825531,0.203888,98093.0,98092.0,0.40284521]
[1733102825977,0.203888,98093.0,98092.0,0.10284521]
[1733102826662,0.203888,98093.0,98092.0,0.10384521]
[1733102826663,0.212888,98093.0,98092.0,0.10384521]
[1733102826904,0.212888,98093.0,98092.0,0.10284521]
[1733102827143,0.212888,98093.0,98092.0,0.10784521]
[1733102828195,0.213888,98093.0,98092.0,0.10784521]
[1733102828411,0.23387484,98093.0,98092.0,0.10784521]
[1733102828842,0.22487484,98093.0,98092.0,0.10284521]
[1733102829060,0.22587484,98093.0,98092.0,0.10284521]
[1733102830166,0.22587484,98093.0,98092.0,0.50284521]
[1733102830609,0.205888,98093.0,98092.0,0.50284521]
[1733102831496,0.204888,98093.0,98092.0,0.50284521]
[1733102831709,0.210888,98093.0,98092.0,0.50284521]
[1733102831937,0.209888,98093.0,98092.0,0.50284521]
[1733102832149,0.212888,98093.0,98092.0,0.50384521]
[1733102832401,0.212888,98093.0,98092.0,0.50284521]
[1733102832402,0.203888,98093.0,98092.0,0.50284521]
[1733102832820,0.212888,98093.0,98092.0,0.50384521]
[1733102833475,0.219888,98093.0,98092.0,0.50484521]
[1733102836008,0.219888,98093.0,98092.0,0.50657581]
[1733102837062,0.212888,98093.0,98092.0,0.50557581]
[1733102837274,0.221888,98093.0,98092.0,0.50657581]
[1733102837716,0.212888,98093.0,98092.0,0.50557581]
[1733102838428,0.221888,98093.0,98092.0,0.50557581]
[1733102839104,0.212888,98093.0,98092.0,0.50557581]
[1733102839528,0.212888,98093.0,98092.0,0.50457581]
[1733102839744,0.203888,98093.0,98092.0,0.50457581]
[1733102840166,0.211888,98093.0,98092.0,0.50457581]
[1733102840625,0.212888,98093.0,98092.0,0.50457581]
[1733102840870,0.220888,98093.0,98092.0,0.50457581]
[1733102841251,0.212888,98093.0,98092.0,0.50457581]
[1733102841938,0.203888,98093.0,98092.0,0.50457581]
[1733102842369,0.212888,98093.0,98092.0,0.50457581]
[1733102842817,0.218888,98093.0,98092.0,0.50457581]
[1733102843249,0.212888,98093.0,98092.0,0.50457581]
[1733102843484,0.220888,98093.0,98092.0,0.50457581]
[1733102843705,0.211888,98093.0,98092.0,0.50457581]
[1733102843947,0.212888,98093.0,98092.0,0.50457581]
[1733102844177,0.212888,98093.0,98092.0,0.10457581]
[1733102844377,0.219888,98093.0,98092.0,0.10457581]
[1733102844828,0.265588,98093.0,98092.0,0.08404981]
[1733102845485,0.219888,98093.0,98092.0,0.38404981]
[1733102845899,0.210888,98093.0,98092.0,0.38404981]
[1733102846359,0.203888,98093.0,98092.0,0.38404981]
[1733102846578,0.204888,98093.0,98092.0,0.38404981]
[1733102846781,0.211888,98093.0,98092.0,0.38404981]
[1733102847202,0.212888,98093.0,98092.0,0.38404981]
[1733102847646,0.220888,98093.0,98092.0,0.38404981]
[1733102848062,0.212888,98093.0,98092.0,0.38404981]
[1733102848344,0.221888,98093.0,98092.0,0.38404981]
[1733102848775,0.212888,98093.0,98092.0,0.38404981]
[1733102848981,0.221888,98093.0,98092.0,0.38404981]
[1733102849411,0.221888,98093.0,98092.0,0.48404981]
[1733102850048,0.212888,98093.0,98092.0,0.48404981]
[1733102850273,0.009,98093.0,98092.0,0.58404981]
[1733102850483,0.018,98093.0,98092.0,0.58404981]
[1733102850897,0.009,98093.0,98092.0,0.58404981]
[1733102851324,0.018,98093.0,98092.0,0.58404981]
[1733102851760,0.009,98093.0,98092.0,0.58404981]
[1733102851965,0.203869,98103.0,98102.0,0.4]
[1733102852173,0.203869,98103.0,98102.0,0.50284521]
[1733102853268,0.203857,98108.0,98102.0,0.50284521]
[1733102853486,0.407714,98108.0,98107.0,0.10284521]
[1733102854201,0.407714,98108.0,98107.0,0.20284521]
[1733102854442,0.203857,98108.0,98107.0,0.20284521]
[1733102854908,0.211857,98108.0,98107.0,0.20284521]
[1733102855354,0.220857,98108.0,98107.0,0.10284521]
[1733102855589,0.211857,98108.0,98107.0,0.10284521]
[1733102855837,0.220857,98108.0,98107.0,0.10284521]
[1733102856496,0.220857,98108.0,98107.0,0.40284521]
[1733102856916,0.220857,98108.0,98099.0,0.1]
[1733102856917,0.017,98108.0,98099.0,0.1]
[1733102857150,0.017,98108.0,98100.0,0.00180401]
[1733102857384,0.203873,98101.0,98100.0,0.00180401]
[1733102857624,0.203873,98101.0,98099.0,0.1]
[1733102857841,0.203873,98101.0,98091.0,0.0107288]
[1733102858078,0.203863,98105.0,98092.0,0.00090209]
[1733102858287,0.006,98108.0,98092.0,0.00090209]
[1733102858521,0.203876,98099.0,98092.0,0.00090209]
[1733102858746,0.203876,98099.0,98090.0,0.26085791]
[1733102858985,0.203876,98099.0,98097.0,0.10284521]
[1733102859211,0.005,98101.0,98100.0,0.3]
[1733102859421,0.203859,98107.0,98100.0,0.10284521]
[1733102859674,0.203859,98107.0,98101.0,0.10284521]
[1733102859893,0.0008653,98109.0,98102.0,0.10284521]
[1733102860133,0.0008653,98109.0,98108.0,0.10284521]
[1733102860348,0.01035674,98124.0,98117.0,0.25]
[1733102860588,0.203807,98132.0,98117.0,0.25]
[1733102860589,0.02088449,98119.0,98117.0,0.25]
[1733102860822,0.02088449,98119.0,98118.0,0.203836]
[1733102861102,0.00011452,98124.0,98123.0,0.303825]
[1733102861351,0.000865,98146.0,98137.0,0.25]
[1733102861590,0.20475854,98146.0,98144.0,0.10284521]
[1733102862017,0.00097954,98146.0,98144.0,0.10284521]
[1733102862242,0.20378,98145.0,98144.0,0.10284521]
[1733102862459,0.00097954,98146.0,98144.0,0.10284521]
[1733102862915,0.00097954,98146.0,98145.0,0.10284521]
[1733102863805,0.00497954,98146.0,98145.0,0.10284521]
[1733102864486,0.203836,98118.0,98113.0,0.3]
[1733102864700,0.203836,98118.0,98117.0,0.10284521]
[1733102865124,0.203831,98121.0,98117.0,0.10284521]
[1733102865335,0.203831,98121.0,98119.0,0.10284521]
[1733102866494,0.203831,98121.0,98120.0,0.10284521]
[1733102866731,0.209831,98121.0,98120.0,0.10284521]
[1733102867653,0.209831,98121.0,98107.0,0.203859]
[1733102868106,0.209831,98121.0,98106.0,0.11081398]
[1733102868107,0.203841,98116.0,98106.0,0.01081398]
[1733102868354,0.01,98121.0,98099.0,0.102]
[1733102868559,0.203865,98105.0,98099.0,0.102]
[1733102868776,0.203869,98102.0,98101.0,0.0545]
[1733102869225,0.0782,98121.0,98092.0,0.01255585]
[1733102869226,0.203888,98093.0,98092.0,0.001731]
[1733102869432,0.203888,98093.0,98092.0,0.00184552]
[1733102869650,0.203883,98096.0,98092.0,0.00184552]
[1733102870114,0.203876,98099.0,98086.0,0.01065305]
[1733102870329,0.203887,98094.0,98086.0,0.01083044]
[1733102870577,0.203887,98094.0,98086.0,0.00017739]
[1733102870793,0.203897,98089.0,98082.0,0.01086697]
[1733102871003,0.203908,98083.0,98082.0,0.00017772]
[1733102871255,0.203904,98086.0,98082.0,0.00017772]
[1733102871680,0.203881,98096.0,98074.0,0.203927]
[1733102871681,0.203899,98088.0,98074.0,0.203927]
[1733102871894,0.00016869,98086.0,98074.0,0.203927]
[1733102872113,0.203904,98085.0,98074.0,0.01074619]
[1733102872327,0.001,98083.0,98074.0,0.01074619]
[1733102872557,0.203911,98082.0,98073.0,0.023]
[1733102872797,0.203911,98082.0,98073.0,0.03399428]
[1733102873264,0.203904,98085.0,98073.0,0.03399428]
[1733102873498,0.00016869,98086.0,98075.0,0.000994]
[1733102874396,0.001,98082.0,98075.0,0.000994]
[1733102874645,0.001,98082.0,98076.0,0.153923]
[1733102874871,0.00016869,98086.0,98076.0,0.153923]
[1733102875126,0.00216869,98086.0,98076.0,0.153923]
[1733102875344,0.00216869,98086.0,98085.0,0.10284521]
[1733102875553,0.00116869,98086.0,98085.0,0.66174921]
[1733102875764,0.00116869,98086.0,98085.0,0.68934921]
[1733102876191,0.0008653,98121.0,98101.0,0.20387]
[1733102876444,0.20401149,98119.0,98102.0,0.10284521]
[1733102876662,0.203846,98113.0,98102.0,0.10284521]
[1733102876888,0.00017749,98119.0,98102.0,0.10284521]
[1733102877112,0.203847,98113.0,98102.0,0.10284521]
[1733102877341,0.203848,98112.0,98102.0,0.10284521]
[1733102878037,0.203848,98112.0,98092.0,0.10673421]
[1733102878246,0.203848,98112.0,98103.0,0.10284521]
[1733102878484,0.407697,98112.0,98103.0,0.10284521]
[1733102878699,0.410697,98112.0,98103.0,0.10284521]
[1733102878909,0.203848,98112.0,98103.0,0.10284521]
[1733102879392,0.00077655,98121.0,98104.0,0.30670921]
[1733102879646,0.00077655,98121.0,98110.0,0.203852]
[1733102879860,0.00077655,98121.0,98111.0,0.12584521]
[1733102880071,0.002,98112.0,98111.0,0.12584521]
[1733102880515,0.00077655,98121.0,98111.0,0.12584521]
[1733102880977,0.002,98112.0,98111.0,0.12584521]
[1733102881410,0.00477655,98121.0,98111.0,0.12584521]
[1733102881623,0.007,98112.0,98111.0,0.12584521]
[1733102882542,0.00077655,98121.0,98111.0,0.12584521]
[1733102882767,0.00777655,98121.0,98111.0,0.13681643]
[1733102883227,0.01177655,98121.0,98111.0,0.13681643]
[1733102883465,0.01177655,98121.0,98113.0,0.0009931]
[1733102883700,0.203844,98114.0,98113.0,0.0009931]
[1733102884385,0.007,98112.0,98097.0,0.00017749]
[1733102884828,0.0483,98114.0,98113.0,0.001]
[1733102885033,0.0563,98114.0,98113.0,0.001]
[1733102885245,0.0483,98114.0,98113.0,0.001]
[1733102885480,0.252144,98114.0,98113.0,0.001]
[1733102885959,0.02032057,98126.0,98113.0,0.001]
[1733102886183,0.203853,98110.0,98102.0,0.0017308]
[1733102886418,0.203863,98105.0,98103.0,0.10284521]
[1733102886627,0.001,98112.0,98103.0,0.10284521]
[1733102886883,0.203862,98106.0,98103.0,0.10284521]
[1733102887090,0.203865,98104.0,98102.0,0.0017308]
[1733102887519,0.303865,98104.0,98102.0,0.0017308]
[1733102887733,0.203904,98085.0,98082.0,0.08948359]
[1733102887936,0.203904,98085.0,98082.0,0.08965228]
[1733102888594,0.203904,98085.0,98083.0,0.0009872]
[1733102889016,0.203904,98085.0,98072.0,0.023]
[1733102889231,0.00017732,98085.0,98070.0,0.2625]
[1733102889446,0.0824,98084.0,98067.0,0.10268834]
[1733102889924,0.203934,98071.0,98067.0,0.10268834]
[1733102890182,0.0461,98074.0,98060.0,0.055]
[1733102890412,0.203954,98061.0,98060.0,0.055]
[1733102890848,0.20395,98064.0,98045.0,0.10172054]
[1733102891055,0.20395,98064.0,98046.0,0.10284521]
[1733102891491,0.20395,98064.0,98047.0,0.023]
[1733102891743,0.001,98071.0,98048.0,0.10284521]
[1733102891943,0.203979,98050.0,98045.0,0.06091754]
[1733102892159,0.203992,98043.0,98036.0,0.02191754]
[1733102892368,0.203992,98043.0,98037.0,0.10284521]
[1733102892816,0.204004,98037.0,98036.0,0.02191754]
[1733102893027,0.0499,98051.0,98036.0,0.02191754]
[1733102893311,0.204002,98038.0,98036.0,0.02191754]
[1733102893560,0.203989,98045.0,98037.0,0.0009973]
[1733102893790,0.203994,98042.0,98037.0,0.0009973]
[1733102894418,0.003,98038.0,98037.0,0.0009973]
[1733102895731,0.002,98038.0,98037.0,0.0009973]
[1733102895940,0.203996,98041.0,98037.0,0.0009973]
[1733102896601,0.203996,98041.0,98031.0,0.68991484]
[1733102896821,0.204004,98037.0,98031.0,0.68991484]
[1733102897037,0.001,98038.0,98031.0,0.68991484]
[1733102897278,0.0499,98051.0,98037.0,0.0017308]
[1733102897498,0.002,98041.0,98031.0,0.49164564]
[1733102897715,0.002,98038.0,98031.0,0.49164564]
[1733102897941,0.00071723,98041.0,98031.0,0.49164564]
[1733102898395,0.001,98038.0,98031.0,0.49164564]
[1733102898600,0.00071723,98041.0,98031.0,0.49164564]
[1733102898811,0.02065252,98042.0,98031.0,0.49164564]
[1733102899054,0.001,98038.0,98031.0,0.29164564]
[1733102899719,0.203993,98043.0,98031.0,0.29164564]
[1733102899925,0.203979,98049.0,98031.0,0.29164564]
[1733102900145,0.203979,98049.0,98031.0,0.09164564]
[1733102900577,0.203979,98049.0,98031.0,0.09264564]
[1733102901017,0.02049538,98044.0,98031.0,0.09164564]
[1733102901232,0.02049538,98044.0,98031.0,0.09464564]
[1733102901699,0.203992,98043.0,98031.0,0.09405456]
[1733102901947,0.203992,98043.0,98021.0,0.0017304]
[1733102901948,0.203996,98041.0,98022.0,0.00707974]
[1733102902188,0.203996,98041.0,98023.0,0.10284521]
[1733102902664,0.22448638,98044.0,98031.0,0.001]
[1733102902840,0.22448638,98044.0,98017.0,0.15]
[1733102903086,0.203992,98043.0,98019.0,0.15]
[1733102903346,0.02049538,98044.0,98022.0,0.002]
[1733102903560,0.02049538,98044.0,98023.0,0.15]
[1733102903765,0.02049538,98044.0,98016.0,0.08030961]
[1733102903766,0.204008,98036.0,98015.0,0.03230961]
[1733102903994,0.204008,98036.0,98016.0,0.10284521]
[1733102904221,0.203995,98042.0,98017.0,0.002]
[1733102904443,0.203995,98042.0,98014.0,0.26109311]
[1733102904653,0.203996,98041.0,98015.0,0.20405]
[1733102904877,0.02049538,98044.0,98014.0,0.26109311]
[1733102905126,0.1,98060.0,98039.0,0.203999]
[1733102905389,0.001,98036.0,98023.0,0.023]
[1733102905609,0.001,98036.0,98031.0,0.204015]
[1733102905816,0.001,98036.0,98033.0,0.204012]
[1733102906011,0.001,98036.0,98034.0,0.18234521]
[1733102906285,0.02061554,98055.0,98043.0,0.20399]
[1733102906759,0.00017726,98059.0,98044.0,0.10284521]
[1733102907200,0.00017726,98059.0,98045.0,0.203987]
[1733102907418,0.1,98052.0,98037.0,0.25]
[1733102907650,0.146,98052.0,98038.0,0.204002]
[1733102907859,0.146,98052.0,98037.0,0.35284521]
[1733102908088,0.00017726,98059.0,98040.0,0.083]
[1733102908364,0.00017726,98059.0,98058.0,0.20396]
[1733102908650,0.00017726,98059.0,98048.0,0.25]
[1733102908651,0.00117726,98059.0,98049.0,0.023]
[1733102908881,0.00117726,98059.0,98058.0,0.10284521]
[1733102909413,0.00117726,98059.0,98049.0,0.323]
[1733102909640,0.00117726,98059.0,98052.0,0.203973]
[1733102909854,0.00017726,98059.0,98053.0,0.10284521]
[1733102910071,0.1,98078.0,98050.0,0.023]
[1733102910285,0.203921,98077.0,98052.0,0.203973]
[1733102910735,0.203921,98077.0,98049.0,0.3]
[1733102910736,0.30676621,98077.0,98049.0,0.155]
[1733102910958,0.10343719,98077.0,98049.0,0.155]
[1733102911147,0.10343719,98077.0,98059.0,0.203958]
[1733102911394,0.10343719,98077.0,98052.0,0.203973]
[1733102911610,0.10343719,98077.0,98049.0,0.15]
[1733102911822,0.10343719,98077.0,98052.0,0.203972]
[1733102912299,0.203923,98076.0,98049.0,0.15]
[1733102912503,0.16178288,98070.0,98049.0,0.353978]
[1733102912716,0.16178288,98070.0,98049.0,0.36503448]
[1733102912891,0.16178288,98070.0,98049.0,0.17103448]
[1733102913139,0.16178288,98070.0,98051.0,0.203975]
[1733102913349,0.16178288,98070.0,98049.0,0.17103448]
[1733102913627,0.16178288,98070.0,98047.0,0.25]
[1733102913872,0.16178288,98060.0,98048.0,0.01074627]
[1733102914115,0.00059198,98077.0,98049.0,0.006]
[1733102914116,0.16178288,98050.0,98049.0,0.006]
[1733102914345,0.16178288,98050.0,98032.0,0.4765]
[1733102914346,0.203979,98049.0,98032.0,0.29504861]
[1733102914797,0.203979,98049.0,98032.0,0.30596177]
[1733102915214,0.16178288,98042.0,98032.0,0.30596177]
[1733102915425,0.204012,98034.0,98021.0,0.252]
[1733102915687,0.16178288,98031.0,98026.0,0.01091751]
[1733102915901,0.16178288,98031.0,98021.0,0.252]
[1733102916346,0.16178288,98031.0,98021.0,0.26267918]
[1733102916559,0.16178288,98031.0,98021.0,0.26285644]
[1733102916772,0.16178288,98031.0,98021.0,0.26385644]
[1733102916999,0.16378288,98031.0,98021.0,0.26385644]
[1733102917214,0.16178288,98031.0,98021.0,0.26285644]
[1733102917650,0.30686421,98030.0,98021.0,0.25317726]
[1733102918084,0.204034,98023.0,98021.0,0.25317726]
[1733102918333,0.204021,98029.0,98021.0,0.25317726]
[1733102918548,0.30686621,98029.0,98021.0,0.25317726]
[1733102918816,0.30686621,98029.0,98021.0,0.25217726]
[1733102919294,0.10284521,98029.0,98021.0,0.25217726]
[1733102919510,0.10284521,98029.0,98021.0,0.05217726]
[1733102920793,0.10284521,98029.0,98008.0,0.25]
[1733102921031,0.00017743,98029.0,98020.0,0.204039]
[1733102921289,0.00017743,98029.0,98026.0,0.204025]
[1733102921481,0.53598403,98050.0,98023.0,0.204033]
[1733102921748,0.16178288,98040.0,98023.0,0.204033]
[1733102922423,0.001,98029.0,98021.0,0.0017334]
[1733102922633,0.16178288,98031.0,98021.0,0.0017334]
[1733102922857,0.16178288,98040.0,98021.0,0.0017334]
[1733102923065,0.16378288,98040.0,98021.0,0.0017334]
[1733102923291,0.16178288,98040.0,98019.0,0.204042]
[1733102923512,0.16178288,98040.0,98017.0,0.204044]
[1733102923719,0.001,98029.0,98015.0,0.0817]
[1733102923934,0.16178288,98040.0,98016.0,0.204048]
[1733102924769,0.16178288,98040.0,98015.0,0.10284521]
[1733102925236,0.16278288,98040.0,98015.0,0.10284521]
[1733102925465,0.26462809,98040.0,98012.0,0.15]
[1733102925883,0.26462809,98040.0,98013.0,0.204053]
[1733102926098,0.10284521,98039.0,98012.0,0.15]
[1733102926332,0.10284521,98039.0,98013.0,0.204053]
[1733102926535,0.00059198,98045.0,98025.0,0.386]
[1733102926750,0.10284521,98044.0,98025.0,0.386]
[1733102926968,0.001,98040.0,98025.0,0.386]
[1733102927190,0.10384521,98040.0,98026.0,0.204027]
[1733102927397,0.10384521,98040.0,98025.0,0.386]
[1733102928010,0.10384521,98040.0,98025.0,0.186]
[1733102928422,0.10284521,98040.0,98025.0,0.186]
[1733102928672,0.10284521,98040.0,98020.0,0.408078]
[1733102928917,0.001,98039.0,98020.0,0.204039]
[1733102929127,0.001,98040.0,98020.0,0.204039]
[1733102929373,0.001,98040.0,98022.0,0.25]
[1733102929604,0.002,98040.0,98020.0,0.204039]
[1733102929820,0.00059198,98045.0,98020.0,0.204039]
[1733102930050,0.10284521,98044.0,98020.0,0.004039]
[1733102930265,0.16178288,98040.0,98017.0,0.15]
[1733102930489,0.16178288,98040.0,98018.0,0.204044]
[1733102930721,0.16178288,98040.0,98019.0,0.15]
[1733102930964,0.10284521,98044.0,98018.0,0.154044]
[1733102931390,0.10284521,98044.0,98015.0,0.38693723]
[1733102931391,0.10284521,98044.0,98023.0,0.204031]
[1733102931596,0.10284521,98044.0,98019.0,0.204042]
[1733102931812,0.10792879,98040.0,98015.0,0.38693723]
[1733102932025,0.10792879,98040.0,98016.0,0.204048]
[1733102932026,0.042125,98039.0,98016.0,0.204048]
[1733102932257,0.042125,98039.0,98015.0,0.38693723]
[1733102932491,0.10792879,98030.0,98016.0,0.204048]
[1733102932721,0.0783,98038.0,98016.0,0.204048]
[1733102933172,0.0783,98038.0,98015.0,0.18693723]
[1733102933375,0.0783,98038.0,98017.0,0.204044]
[1733102933587,0.0783,98038.0,98023.0,0.204033]
[1733102933801,0.0783,98038.0,98015.0,0.18693723]
[1733102934052,0.0783,98038.0,98022.0,0.204033]
[1733102934256,0.0783,98038.0,98015.0,0.18693723]
[1733102934464,0.0783,98038.0,98016.0,0.204048]
[1733102934676,0.0783,98038.0,98015.0,0.18693723]
[1733102935100,0.0783,98038.0,98015.0,0.0017336]
[1733102935323,0.10792879,98030.0,98015.0,0.0017336]
[1733102935543,0.0489,98037.0,98015.0,0.0017336]
[1733102935775,0.0783,98038.0,98015.0,0.0017336]
[1733102935776,0.0783,98038.0,98022.0,0.204033]
[1733102936010,0.042125,98039.0,98026.0,0.204027]
[1733102936225,0.042125,98039.0,98028.0,0.15]
[1733102936444,0.042125,98039.0,98036.0,0.204005]
[1733102936445,0.0275218,98039.0,98036.0,0.204005]
[1733102936900,0.15682879,98060.0,98033.0,0.25]
[1733102937113,0.10792879,98050.0,98033.0,0.25059198]
[1733102937547,0.10284521,98049.0,98033.0,0.00059198]
[1733102937756,0.10792879,98043.0,98033.0,0.00059198]
[1733102937964,0.10284521,98049.0,98033.0,0.00059198]
[1733102938181,0.003,98039.0,98024.0,0.15462298]
[1733102938605,0.10343719,98049.0,98033.0,0.001]
[1733102938815,0.10443719,98049.0,98033.0,0.001]
[1733102939027,0.0775,98048.0,98017.0,0.3]
[1733102939235,0.0775,98048.0,98018.0,0.10284521]
[1733102939453,0.001,98039.0,98024.0,0.003]
[1733102939661,0.1264,98048.0,98024.0,0.207029]
[1733102940306,0.1264,98048.0,98025.0,0.204029]
[1733102941208,0.1274,98048.0,98021.0,0.02080641]
[1733102941441,0.1274,98048.0,98030.0,0.3]
[1733102941686,0.1264,98048.0,98032.0,0.204012]
[1733102941896,0.1264,98048.0,98032.0,0.408025]
[1733102942117,0.1274,98048.0,98032.0,0.408025]
[1733102942327,0.1264,98048.0,98032.0,0.408025]
[1733102942762,0.1264,98048.0,98030.0,0.40284521]
[1733102942763,0.1264,98048.0,98030.0,0.3]
[1733102942998,0.1264,98048.0,98032.0,0.01102947]
[1733102943207,0.1264,98048.0,98030.0,0.3]
[1733102943663,0.1264,98048.0,98030.0,0.31110022]
[1733102944386,0.1264,98048.0,98030.0,0.51511822]
[1733102944828,0.1274,98048.0,98030.0,0.51511822]
[1733102945279,0.1264,98048.0,98030.0,0.51511822]
[1733102945487,0.1274,98048.0,98030.0,0.51511822]